bitfinex-derivatives/quotes_BTCF0:USTF0_20251125
["timestamp","ask_amount","ask_price","bid_price","bid_amount"]
[1764083295457,0.64306,86544.0,86543.0,0.2413814]
[1764083295663,0.53032,86544.0,86543.0,0.2413814]
[1764083295963,0.64306,86544.0,86543.0,0.22982]
[1764083296563,0.64306,86544.0,86543.0,0.29196997]
[1764083297361,0.2346215,86543.0,86542.0,0.24608005]
[1764083297564,0.6046215,86543.0,86542.0,0.18392]
[1764083297949,0.59306,86543.0,86542.0,0.41374]
[1764083298456,0.48032,86543.0,86542.0,0.41374]
[1764083298657,0.3608,86555.0,86544.0,0.06747]
[1764083298854,0.11032,86554.0,86553.0,0.22982]
[1764083299165,0.62306,86554.0,86553.0,0.22982]
[1764083299360,0.52032,86554.0,86553.0,0.22982]
[1764083299559,0.00017332,86556.0,86555.0,0.22982]
[1764083299754,0.00017332,86556.0,86555.0,0.77454]
[1764083300365,0.11049332,86556.0,86555.0,0.77454]
[1764083300565,0.11049332,86556.0,86555.0,0.41374]
[1764083300762,0.11149332,86556.0,86555.0,0.41374]
[1764083301168,0.11249332,86556.0,86555.0,0.41374]
[1764083301461,0.00217332,86556.0,86555.0,0.41374]
[1764083305669,0.3608,86594.0,86555.0,0.41374]
[1764083305670,0.3608,86594.0,86582.0,0.22982]
[1764083305869,0.234616,86584.0,86583.0,0.18388]
[1764083306062,0.644616,86584.0,86583.0,0.18388]
[1764083306663,0.41,86584.0,86583.0,0.4137]
[1764083306867,0.3723546,86587.0,86586.0,0.22982]
[1764083307163,0.4623546,86587.0,86586.0,0.22982]
[1764083307364,0.6023546,86587.0,86586.0,0.22982]
[1764083307568,0.3608,86587.0,86586.0,0.22982]
[1764083307765,0.3608,86594.0,86593.0,0.22982]
[1764083307967,0.3608,86594.0,86593.0,0.59062]
[1764083307968,0.44,86594.0,86593.0,0.59062]
[1764083308166,0.1218727,86601.0,86600.0,0.22982]
[1764083308370,0.2218727,86601.0,86600.0,0.7745]
[1764083308666,0.6346127,86601.0,86600.0,0.7745]
[1764083308864,0.4,86601.0,86600.0,0.7860527]
[1764083309064,0.4,86601.0,86600.0,0.7745]
[1764083309270,0.0115511,86613.0,86608.0,0.22982]
[1764083309461,0.4215511,86613.0,86612.0,0.22982]
[1764083310068,0.5318711,86613.0,86612.0,0.22982]
[1764083310365,0.52032,86613.0,86612.0,0.22982]
[1764083310560,0.41,86613.0,86612.0,0.22982]
[1764083311069,0.01155,86621.0,86618.0,0.22982]
[1764083311367,0.01155,86621.0,86620.0,0.22982]
[1764083311873,0.23461,86621.0,86620.0,0.22982]
[1764083312169,0.11032,86619.0,86618.0,0.48013]
[1764083312369,0.16032,86619.0,86618.0,0.48013]
[1764083312564,0.01155,86621.0,86620.0,0.22982]
[1764083312766,0.2346111,86612.0,86611.0,0.00017321]
[1764083312966,0.2346126,86601.0,86600.0,0.3608]
[1764083313168,0.6546126,86601.0,86600.0,0.54464]
[1764083313467,0.2346138,86592.0,86591.0,0.3608]
[1764083313667,0.22306,86583.0,86582.0,0.3608]
[1764083313967,0.60306,86583.0,86582.0,0.54464]
[1764083314271,0.11032,86583.0,86582.0,0.77446]
[1764083314466,0.49032,86583.0,86582.0,0.77446]
[1764083314663,0.00017286,86591.0,86590.0,0.11049]
[1764083314863,0.40017286,86591.0,86590.0,0.22982]
[1764083315457,0.00017286,86591.0,86590.0,0.22982]
[1764083315866,0.00017286,86591.0,86590.0,0.29196619]
[1764083316071,0.00017286,86591.0,86590.0,0.22982]
[1764083316270,0.3608,86623.0,86604.0,0.0115521]
[1764083316567,0.7823497,86623.0,86622.0,0.22982]
[1764083316772,0.6654097,86623.0,86622.0,0.11933]
[1764083316967,1.0254097,86623.0,86622.0,0.11933]
[1764083317159,0.3608,86632.0,86622.0,0.22982]
[1764083317359,0.3608,86632.0,86623.0,0.3608]
[1764083317360,0.6454085,86632.0,86623.0,0.3608]
[1764083317557,0.2846085,86632.0,86623.0,0.3608]
[1764083317761,0.0115489,86629.0,86623.0,0.3608]
[1764083317967,0.2415489,86629.0,86623.0,0.3608]
[1764083318166,0.23,86629.0,86628.0,0.22982]
[1764083318370,0.3608,86640.0,86639.0,0.22982]
[1764083318559,0.85112,86640.0,86639.0,0.22982]
[1764083318760,0.7408,86640.0,86639.0,0.22982]
[1764083318965,0.49032,86640.0,86639.0,0.22982]
[1764083319476,0.38,86640.0,86639.0,0.22982]
[1764083319667,0.22306,86637.0,86636.0,0.1838]
[1764083319971,0.0115479,86636.0,86630.0,0.3608]
[1764083320275,0.3815479,86636.0,86631.0,0.1838]
[1764083320970,0.002,86640.0,86639.0,0.22982]
[1764083321167,0.002,86640.0,86639.0,0.59062]
[1764083321964,0.0115448,86660.0,86640.0,0.0115473]
[1764083322163,0.0115453,86656.0,86648.0,0.3608]
[1764083322364,0.0115459,86651.0,86650.0,0.22835]
[1764083322564,0.2193,86650.0,86649.0,0.18376]
[1764083322768,0.2193,86650.0,86640.0,0.00017311]
[1764083322769,0.2193,86641.0,86640.0,0.11245311]
[1764083322971,0.0115464,86648.0,86640.0,0.41228311]
[1764083323168,0.2993,86648.0,86647.0,0.11228]
[1764083323373,0.2193,86641.0,86640.0,0.18393311]
[1764083323570,1.3416473,86641.0,86640.0,0.00017311]
[1764083323770,1.3416473,86641.0,86622.0,0.3608]
[1764083323771,0.2308497,86623.0,86622.0,0.3608]
[1764083324067,0.6108497,86623.0,86622.0,0.3608]
[1764083324769,0.2308503,86618.0,86617.0,0.18376]
[1764083324974,0.2193,86615.0,86614.0,0.00017311]
[1764083325174,0.5993,86615.0,86614.0,0.00017311]
[1764083325676,0.48796,86615.0,86614.0,0.11245311]
[1764083325977,0.5993,86615.0,86614.0,0.00017311]
[1764083326276,0.6493,86615.0,86614.0,0.00017311]
[1764083326472,0.3293,86615.0,86614.0,0.00017311]
[1764083326669,0.6193,86615.0,86614.0,0.00017311]
[1764083327074,0.6193,86615.0,86614.0,0.11245311]
[1764083327577,0.3893,86615.0,86614.0,0.11398311]
[1764083327976,0.51796,86615.0,86614.0,0.11398311]
[1764083328171,0.51796,86615.0,86614.0,0.23005311]
[1764083328172,0.41,86615.0,86614.0,0.23005311]
[1764083328376,0.0115501,86621.0,86614.0,0.23005311]
[1764083328672,0.4415501,86621.0,86614.0,0.23005311]
[1764083329373,0.4415501,86621.0,86614.0,0.24160391]
[1764083329576,0.43,86621.0,86617.0,0.0115504]
[1764083329772,0.43,86621.0,86614.0,0.00170311]
[1764083329984,0.53796,86621.0,86620.0,0.47308]
[1764083330171,0.00017277,86631.0,86620.0,0.3608]
[1764083330373,0.00017277,86631.0,86620.0,0.46588094]
[1764083330666,0.00017277,86631.0,86620.0,0.3608]
[1764083330667,0.2193,86621.0,86620.0,0.3608]
[1764083330876,0.02,86621.0,86620.0,0.58915]
[1764083331076,0.02,86621.0,86620.0,0.6007001]
[1764083331271,0.0115487,86630.0,86623.0,0.0115496]
[1764083331583,0.2193,86621.0,86620.0,0.3608]
[1764083331765,0.6393,86621.0,86620.0,0.3608]
[1764083332275,0.2308507,86615.0,86614.0,0.00170311]
[1764083332467,0.6308507,86615.0,86614.0,0.00170311]
[1764083332665,0.6193,86615.0,86614.0,0.00170311]
[1764083332868,1.0493,86615.0,86614.0,0.00170311]
[1764083333071,1.0493,86615.0,86603.0,0.00011797]
[1764083333072,0.2193,86604.0,86603.0,0.00011797]
[1764083333269,1.0008522,86604.0,86603.0,0.00011797]
[1764083333467,0.6308522,86604.0,86603.0,0.00011797]
[1764083333875,0.6193,86604.0,86603.0,0.36091797]
[1764083334064,0.10796,86614.0,86613.0,0.011551]
[1764083334272,0.21947311,86622.0,86621.0,0.0115499]
[1764083334578,0.40017311,86622.0,86620.0,0.37235]
[1764083334770,0.0115499,86621.0,86620.0,0.3608]
[1764083334971,0.0915499,86621.0,86620.0,0.58915]
[1764083335280,0.08,86621.0,86620.0,0.58915]
[1764083335573,0.18796,86621.0,86620.0,0.58915]
[1764083335775,0.1195109,86614.0,86613.0,0.06208676]
[1764083335982,0.1195109,86614.0,86613.0,0.00017311]
[1764083336180,0.6608509,86614.0,86613.0,0.18389311]
[1764083336374,0.6608509,86614.0,86613.0,0.00017311]
[1764083336776,0.43,86614.0,86613.0,0.22852311]
[1764083337275,0.43,86614.0,86613.0,0.29043676]
[1764083337487,0.43,86614.0,86613.0,0.29060003]
[1764083337680,0.00017311,86622.0,86613.0,0.29060003]
[1764083337681,0.00017311,86622.0,86621.0,0.22835]
[1764083337872,0.03017311,86622.0,86621.0,0.6006999]
[1764083338981,0.03017311,86622.0,86621.0,0.58915]
[1764083339176,0.03017311,86622.0,86621.0,0.53516325]
[1764083339177,0.58889311,86622.0,86621.0,0.53516325]
[1764083339380,0.38494438,86622.0,86621.0,0.42288325]
[1764083339580,0.38494438,86622.0,86621.0,0.55604]
[1764083339882,0.44,86622.0,86621.0,0.55604]
[1764083340483,0.57838,86622.0,86621.0,0.46088]
[1764083340980,0.44,86622.0,86621.0,0.5675899]
[1764083341186,0.00017277,86630.0,86629.0,0.2067889]
[1764083341381,0.0115481,86635.0,86634.0,0.19524]
[1764083341576,0.06919,86633.0,86632.0,0.05908]
[1764083341879,0.06919,86633.0,86632.0,0.15916]
[1764083341880,0.56838,86633.0,86632.0,0.15916]
[1764083342084,0.0115481,86635.0,86634.0,0.19524]
[1764083342283,0.5007381,86635.0,86634.0,0.19524]
[1764083342584,0.13838,86633.0,86629.0,0.54452]
[1764083342777,0.13838,86633.0,86621.0,0.3608]
[1764083342778,0.13838,86624.0,86622.0,0.06207705]
[1764083342980,0.13838,86618.0,86617.0,0.06207705]
[1764083343174,0.13838,86616.0,86615.0,0.18372]
[1764083343373,0.13838,86614.0,86613.0,0.00017311]
[1764083343681,0.50838,86614.0,86613.0,0.00017311]
[1764083343882,0.91838,86614.0,86613.0,0.00017311]
[1764083344083,0.13838,86604.0,86603.0,0.00011797]
[1764083344283,0.53838,86604.0,86603.0,0.00011797]
[1764083344683,0.97838,86604.0,86603.0,0.00011797]
[1764083345079,0.13838,86596.0,86595.0,0.00017311]
[1764083345280,0.42,86596.0,86595.0,0.19541311]
[1764083345483,0.55838,86596.0,86595.0,0.10025311]
[1764083345787,0.42,86596.0,86595.0,0.19541311]
[1764083345980,0.42011797,86596.0,86595.0,0.19541311]
[1764083346181,0.43011797,86596.0,86595.0,0.19541311]
[1764083346982,0.43011797,86596.0,86595.0,0.00017311]
[1764083346983,0.56849797,86596.0,86595.0,0.00017311]
[1764083347174,0.43011797,86596.0,86595.0,0.19641311]
[1764083347379,0.43011797,86596.0,86595.0,0.19741311]
[1764083347882,0.49930797,86596.0,86595.0,0.19741311]
[1764083348283,0.43011797,86596.0,86595.0,0.19741311]
[1764083348478,0.00017311,86612.0,86611.0,0.19524]
[1764083348677,0.43017311,86612.0,86611.0,0.19524]
[1764083349082,0.44172421,86612.0,86611.0,0.19524]
[1764083349286,0.43017311,86612.0,86611.0,0.19524]
[1764083350389,0.49936311,86612.0,86611.0,0.19524]
[1764083350691,0.1499313,86611.0,86610.0,0.54452]
[1764083350879,0.1499313,86611.0,86610.0,0.6446]
[1764083350880,0.57838,86611.0,86610.0,0.6446]
[1764083351085,0.44,86611.0,86610.0,0.73976]
[1764083351888,0.58591,86611.0,86610.0,0.54452]
[1764083352386,0.44,86611.0,86610.0,0.74799]
[1764083352688,0.59344,86611.0,86610.0,0.64516]
[1764083353385,0.44,86611.0,86610.0,0.74799]
[1764083355282,0.4515513,86611.0,86610.0,0.74799]
[1764083355485,0.6049913,86611.0,86610.0,0.64516]
[1764083355684,0.5282713,86611.0,86610.0,0.74799]
[1764083355984,0.44,86611.0,86610.0,0.74799]
[1764083357191,0.5282713,86611.0,86610.0,0.74799]
[1764083357397,0.6049913,86611.0,86610.0,0.54452]
[1764083357687,0.6049913,86611.0,86610.0,0.74799]
[1764083357892,0.4515513,86611.0,86610.0,0.74799]
[1764083358095,0.6049913,86611.0,86610.0,0.64516]
[1764083358791,0.44,86611.0,86610.0,0.74799]
[1764083359180,0.5282713,86611.0,86610.0,0.74799]
[1764083359384,0.4515513,86611.0,86610.0,0.74799]
[1764083359590,0.6049913,86611.0,86610.0,0.74799]
[1764083359895,0.6049913,86611.0,86610.0,0.64516]
[1764083360486,0.44,86611.0,86610.0,0.74799]
[1764083360891,0.3608,86639.0,86629.0,0.0115488]
[1764083361091,0.011548,86636.0,86635.0,0.20347]
[1764083361294,0.498438,86636.0,86635.0,0.20347]
[1764083361495,0.0115485,86632.0,86631.0,0.20347]
[1764083361695,0.4515485,86632.0,86631.0,0.20347]
[1764083361892,0.6053285,86632.0,86631.0,0.20347]
[1764083362094,0.15378,86630.0,86629.0,0.3608]
[1764083362288,0.54378,86630.0,86629.0,0.3608]
[1764083363092,0.54378,86630.0,86623.0,0.18389322]
[1764083363395,0.1653295,86624.0,86623.0,0.18389322]
[1764083363595,1.3461295,86624.0,86623.0,0.00017322]
[1764083363995,0.8961295,86624.0,86623.0,0.00017322]
[1764083364902,0.8971295,86624.0,86623.0,0.00017322]
[1764083365102,0.88558,86624.0,86623.0,0.00017322]
[1764083365399,0.44789,86624.0,86623.0,0.20364322]
[1764083365698,0.34388477,86624.0,86623.0,0.20364322]
[1764083365905,0.34388477,86624.0,86623.0,0.00017322]
[1764083366104,0.26699477,86624.0,86623.0,0.20364322]
[1764083366396,0.26599477,86624.0,86623.0,0.20364322]
[1764083366592,0.26599477,86624.0,86623.0,0.26580568]
[1764083366794,0.26599477,86624.0,86623.0,0.00017322]
[1764083367706,0.71599477,86624.0,86623.0,0.00017322]
[1764083368204,0.26599477,86624.0,86623.0,0.20364322]
[1764083368793,0.4215495,86624.0,86623.0,0.00017322]
[1764083369599,0.8615495,86624.0,86623.0,0.00017322]
[1764083370203,0.8625495,86624.0,86623.0,0.00017322]
[1764083370404,0.4225495,86624.0,86623.0,0.00017322]
[1764083370598,0.7125495,86624.0,86623.0,0.00017322]
[1764083371304,0.291,86624.0,86623.0,0.20364322]
[1764083371508,0.0115457,86653.0,86625.0,0.05598]
[1764083371707,0.19752,86645.0,86644.0,0.0115469]
[1764083371901,0.63752,86645.0,86644.0,0.0115469]
[1764083372108,0.63752,86645.0,86640.0,0.0115474]
[1764083372408,0.19752,86641.0,86640.0,0.3608]
[1764083372599,0.59752,86641.0,86640.0,0.46144]
[1764083372795,0.59752,86641.0,86640.0,0.3608]
[1764083373204,0.19752,86633.0,86632.0,0.1046]
[1764083373507,0.5259,86633.0,86632.0,0.30807]
[1764083373702,0.19752,86631.0,86630.0,0.00017311]
[1764083373895,0.58752,86631.0,86630.0,0.00017311]
[1764083374504,1.02752,86631.0,86630.0,0.00017311]
[1764083374704,0.16,86631.0,86630.0,0.20364311]
[1764083374909,0.16,86631.0,86630.0,0.56444311]
[1764083375103,0.19852,86641.0,86640.0,0.20347]
[1764083375304,0.62852,86641.0,86640.0,0.20347]
[1764083375607,0.001,86641.0,86640.0,0.62025]
[1764083375905,0.372343,86673.0,86646.0,0.0115465]
[1764083376113,0.19752,86657.0,86656.0,0.3608]
[1764083376308,0.63752,86657.0,86656.0,0.56427]
[1764083377399,0.63852,86657.0,86656.0,0.56427]
[1764083377710,0.441,86657.0,86656.0,0.56427]
[1764083377906,0.001,86657.0,86656.0,0.56427]
[1764083378916,0.002,86657.0,86656.0,0.56427]
[1764083381012,0.3608,86691.0,86679.0,0.20238]
[1764083381207,0.7908,86680.0,86679.0,0.20238]
[1764083381405,0.89343,86680.0,86679.0,0.20238]
[1764083381814,0.10263,86677.0,86676.0,0.2139225]
[1764083382114,0.03196,86688.0,86676.0,0.2139225]
[1764083382115,0.03196,86688.0,86679.0,0.20238]
[1764083382308,0.41196,86688.0,86679.0,0.20238]
[1764083382499,0.20213,86680.0,86679.0,0.20238]
[1764083382703,0.20113,86674.0,86673.0,0.3608]
[1764083382905,0.59113,86674.0,86673.0,0.3608]
[1764083383508,0.39,86674.0,86673.0,0.56318]
[1764083384605,0.59113,86674.0,86673.0,0.56318]
[1764083384810,0.59313,86674.0,86673.0,0.56318]
[1764083385016,0.5654133,86674.0,86673.0,0.3608]
[1764083385610,0.5654133,86674.0,86673.0,0.56318]
[1764083386107,0.4669133,86674.0,86673.0,0.56318]
[1764083386312,0.3642833,86674.0,86673.0,0.56318]
[1764083386520,0.5654133,86674.0,86673.0,0.56318]
[1764083386816,0.5654133,86674.0,86673.0,0.3608]
[1764083387420,0.5654133,86674.0,86673.0,0.476453]
[1764083387718,0.5654133,86674.0,86673.0,0.56318]
[1764083387910,0.5654133,86674.0,86673.0,0.3608]
[1764083388311,0.5654133,86674.0,86673.0,0.56318]
[1764083389218,0.3642833,86674.0,86673.0,0.56318]
[1764083391119,0.002,86674.0,86673.0,0.56318]
[1764083391622,0.20113,86700.0,86699.0,0.10411]
[1764083391920,0.61113,86700.0,86699.0,0.10411]
[1764083392422,0.61113,86700.0,86699.0,0.56318]
[1764083393519,0.51263,86700.0,86699.0,0.56318]
[1764083394117,0.61113,86700.0,86699.0,0.56318]
[1764083394715,0.51263,86700.0,86699.0,0.56318]
[1764083395522,0.61113,86700.0,86699.0,0.56318]
[1764083395718,0.61113,86700.0,86699.0,0.3608]
[1764083396122,0.61113,86700.0,86699.0,0.46491]
[1764083396322,0.61113,86700.0,86699.0,0.3608]
[1764083396721,0.61113,86700.0,86699.0,0.46491]
[1764083396918,0.61113,86700.0,86699.0,0.3608]
[1764083397120,0.61113,86700.0,86699.0,0.54432]
[1764083398418,0.61113,86700.0,86699.0,0.74603]
[1764083398617,0.43113,86700.0,86699.0,0.74603]
[1764083399420,0.33263,86700.0,86699.0,0.74603]
[1764083400218,0.23,86700.0,86699.0,0.74603]
[1764083400421,0.3608,86728.0,86724.0,0.09991]
[1764083400616,0.3608,86728.0,86710.0,0.06146]
[1764083400617,0.23,86728.0,86727.0,0.2132458]
[1764083400826,0.21805669,86748.0,86733.0,0.011535]
[1764083401122,0.50762359,86748.0,86747.0,0.20171]
[1764083401320,0.60652359,86748.0,86747.0,0.38523]
[1764083401520,0.16847359,86748.0,86747.0,0.38523]
[1764083401716,0.00847359,86748.0,86747.0,0.38523]
[1764083401919,0.61267643,86748.0,86747.0,0.38523]
[1764083402127,0.41462643,86748.0,86747.0,0.38523]
[1764083402322,0.003,86748.0,86747.0,0.20171]
[1764083402625,0.19805,86740.0,86739.0,0.000173]
[1764083402833,0.61035545,86740.0,86739.0,0.000173]
[1764083403122,1.04035545,86740.0,86739.0,0.183653]
[1764083403327,0.99035545,86740.0,86739.0,0.183653]
[1764083403726,0.44,86740.0,86739.0,0.3968972]
[1764083403917,0.38,86740.0,86739.0,0.39925467]
[1764083404117,0.10115,86748.0,86747.0,0.09991]
[1764083404321,0.422,86748.0,86747.0,0.21560167]
[1764083404525,0.421,86748.0,86747.0,0.21560167]
[1764083404732,0.3608,86765.0,86764.0,0.20171]
[1764083404924,0.23,86765.0,86764.0,0.38519]
[1764083405427,0.23,86765.0,86764.0,0.74599]
[1764083405815,0.3871182,86784.0,86764.0,0.74599]
[1764083405816,0.3608,86784.0,86783.0,0.09991]
[1764083406030,0.99885,86784.0,86783.0,0.18348]
[1764083406427,0.63805,86784.0,86783.0,0.28339]
[1764083406817,0.63805,86784.0,86783.0,0.01455633]
[1764083407131,0.44,86784.0,86783.0,0.76050633]
[1764083407333,0.19,86784.0,86783.0,0.76050633]
[1764083407527,0.192,86784.0,86783.0,0.76050633]
[1764083407725,0.402,86784.0,86783.0,0.76050633]
[1764083408120,0.24189,86784.0,86783.0,0.76050633]
[1764083408331,0.3608,86795.0,86783.0,0.76050633]
[1764083408525,0.7208,86795.0,86784.0,0.01455633]
[1764083408726,0.36,86795.0,86794.0,0.56251]
[1764083408929,0.36,86795.0,86794.0,0.57706633]
[1764083409132,0.372324,86816.0,86796.0,0.0115266]
[1764083409430,0.772324,86816.0,86801.0,0.3608]
[1764083409630,0.0115246,86812.0,86802.0,0.01455633]
[1764083409831,0.19805,86804.0,86803.0,0.19795633]
[1764083410036,0.58805,86804.0,86803.0,0.01455633]
[1764083410329,0.58805,86804.0,86803.0,0.17479633]
[1764083410529,0.54653274,86804.0,86803.0,0.37650633]
[1764083410732,0.48915,86804.0,86803.0,0.37650633]
[1764083410935,0.46147367,86804.0,86803.0,0.21626633]
[1764083411131,0.56037367,86804.0,86803.0,0.29786633]
[1764083411323,0.17037367,86804.0,86803.0,0.29786633]
[1764083411523,0.44,86804.0,86803.0,0.39857633]
[1764083411729,0.3608,86817.0,86816.0,0.20689]
[1764083412025,0.92240226,86817.0,86816.0,0.12073633]
[1764083412226,0.57544,86817.0,86816.0,0.01455633]
[1764083412632,0.57544,86817.0,86816.0,0.19791633]
[1764083413434,0.37,86817.0,86816.0,0.40480633]
[1764083413632,0.0625,86827.0,86816.0,0.40480633]
[1764083413633,0.0625,86827.0,86816.0,0.41633023]
[1764083413830,0.09191444,86818.0,86817.0,0.01455633]
[1764083414025,0.09191444,86818.0,86817.0,0.12073633]
[1764083414232,0.09191444,86818.0,86817.0,0.22144633]
[1764083414734,0.63160444,86818.0,86817.0,0.01455633]
[1764083414944,0.63160444,86818.0,86817.0,0.19787633]
[1764083415131,1.05160444,86818.0,86817.0,0.01455633]
[1764083415333,0.0625,86814.0,86794.0,0.3608]
[1764083415635,0.4,86814.0,86813.0,0.20689]
[1764083415837,0.20544,86811.0,86810.0,0.3608]
[1764083416044,0.62544,86811.0,86810.0,0.53996]
[1764083416641,0.20544,86809.0,86808.0,0.18332]
[1764083416841,0.2169664,86798.0,86794.0,0.3608]
[1764083417037,0.65544,86798.0,86796.0,0.18332]
[1764083417536,0.65544,86798.0,86797.0,0.2070629]
[1764083417938,0.45,86798.0,86797.0,0.2070629]
[1764083418139,0.55575,86798.0,86797.0,0.2070629]
[1764083418441,0.65544,86798.0,86797.0,0.1854529]
[1764083418836,0.45,86798.0,86797.0,0.3923429]
[1764083419243,0.45,86798.0,86797.0,0.2090629]
[1764083419543,0.45,86798.0,86797.0,0.3923429]
[1764083419732,0.55575,86798.0,86797.0,0.3923429]
[1764083419933,0.45,86798.0,86797.0,0.3923429]
[1764083420637,0.42232338,86798.0,86797.0,0.3913429]
[1764083420838,0.3608,86813.0,86809.0,0.0115249]
[1764083421039,0.7308,86813.0,86809.0,0.0115249]
[1764083421350,0.83655,86813.0,86812.0,0.10618]
[1764083421644,0.57544,86813.0,86812.0,0.28946]
[1764083421832,0.5616026,86813.0,86812.0,0.28946]
[1764083422232,0.5616026,86813.0,86812.0,0.18328]
[1764083422433,0.573127,86813.0,86812.0,0.18328]
[1764083422747,0.5616026,86813.0,86812.0,0.18328]
[1764083423835,0.5477652,86813.0,86812.0,0.18328]
[1764083424539,0.0115245,86812.0,86811.0,0.18324]
[1764083424743,0.6069645,86812.0,86811.0,0.18324]
[1764083424941,0.49575,86812.0,86811.0,0.39013]
[1764083425145,0.26794,86820.0,86819.0,0.0115235]
[1764083425340,0.26794,86820.0,86805.0,0.3608]
[1764083425341,0.20544,86813.0,86805.0,0.3608]
[1764083425530,0.61544,86813.0,86805.0,0.3608]
[1764083425736,0.20544,86812.0,86811.0,0.1177045]
[1764083425931,0.20544,86825.0,86824.0,0.0115229]
[1764083426131,0.35544,86825.0,86824.0,0.2184129]
[1764083426433,0.35544,86825.0,86824.0,0.4016529]
[1764083426434,0.64544,86825.0,86824.0,0.4016529]
[1764083426641,0.3608,86842.0,86837.0,0.20689]
[1764083426941,0.10575,86838.0,86837.0,0.2184112]
[1764083427135,0.20544,86845.0,86844.0,0.0115202]
[1764083427336,0.63544,86845.0,86844.0,0.01422665]
[1764083427533,1.06544,86845.0,86844.0,0.01422665]
[1764083427737,0.73544,86845.0,86844.0,0.01422665]
[1764083427942,0.7469601,86845.0,86844.0,0.01422665]
[1764083428547,0.6192932,86845.0,86844.0,0.01422665]
[1764083428742,0.6077731,86845.0,86844.0,0.01422665]
[1764083429141,0.6077731,86845.0,86844.0,0.22111665]
[1764083429335,0.5080831,86845.0,86844.0,0.22111665]
[1764083429537,0.0625,86853.0,86844.0,0.01422665]
[1764083429737,0.0625,86853.0,86843.0,0.3608]
[1764083429738,0.20544,86852.0,86851.0,0.3723193]
[1764083429941,0.3608,86865.0,86864.0,0.20689]
[1764083430136,0.0115163,86874.0,86864.0,0.19746665]
[1764083430343,0.10575,86866.0,86865.0,0.01422665]
[1764083430539,0.57544,86866.0,86865.0,0.01422665]
[1764083430939,0.6494574,86866.0,86865.0,0.01422665]
[1764083431445,0.63894,86866.0,86865.0,0.01422665]
[1764083431939,0.62511084,86866.0,86865.0,0.01422665]
[1764083432248,0.57644,86866.0,86865.0,0.10618]
[1764083432435,0.57644,86866.0,86865.0,0.0134252]
[1764083432747,0.63894,86866.0,86865.0,0.0134252]
[1764083432944,0.2169585,86857.0,86856.0,0.00017268]
[1764083433145,0.57544,86857.0,86856.0,0.00017268]
[1764083433444,0.3608,86864.0,86856.0,0.20706268]
[1764083433643,0.95624,86864.0,86863.0,0.10618]
[1764083433849,0.94241048,86864.0,86863.0,0.10618]
[1764083434250,0.94241048,86864.0,86857.0,0.0115185]
[1764083434449,0.10575,86862.0,86861.0,0.011518]
[1764083434648,0.54575,86862.0,86861.0,0.20689]
[1764083435246,0.001,86864.0,86863.0,0.20689]
[1764083436138,0.011517,86869.0,86863.0,0.20689]
[1764083436334,0.20544,86864.0,86863.0,0.20689]
[1764083436541,0.59778342,86864.0,86863.0,0.20689]
[1764083436742,0.001,86864.0,86863.0,0.20689]
[1764083436937,1e-07,86864.0,86863.0,0.20689]
[1764083437143,0.3608,86904.0,86903.0,0.0115125]
[1764083437342,0.3608,86922.0,86913.0,0.20689]
[1764083437541,0.43069166,86914.0,86913.0,0.20689]
[1764083437746,0.34,86914.0,86913.0,0.20689]
[1764083438346,0.0115106,86917.0,86916.0,0.10618]
[1764083438549,0.3608,86929.0,86916.0,0.20689]
[1764083438847,0.3608,86929.0,86924.0,0.20689]
[1764083439248,0.0115067,86947.0,86924.0,0.20689]
[1764083439546,0.3608,86958.0,86924.0,0.39001]
[1764083439547,0.0115076,86940.0,86924.0,0.39001]
[1764083439849,0.3608,86942.0,86924.0,0.39001]
[1764083440050,0.011508,86937.0,86924.0,0.39201]
[1764083440346,0.0115085,86933.0,86924.0,0.39201]
[1764083440552,0.0115085,86933.0,86924.0,0.39501]
[1764083440749,0.01986224,86925.0,86924.0,0.21189]
[1764083441049,0.59530224,86925.0,86924.0,0.18812]
[1764083441351,0.59530224,86925.0,86916.0,0.00017258]
[1764083441352,0.2239306,86917.0,86916.0,0.00017258]
[1764083441551,0.21242,86901.0,86900.0,0.18308]
[1764083441749,0.59242,86901.0,86900.0,0.18308]
[1764083442050,0.59242,86901.0,86900.0,0.40028]
[1764083442051,0.38,86901.0,86900.0,0.40028]
[1764083442649,0.3608,86917.0,86900.0,0.40028]
[1764083442650,0.00835274,86925.0,86924.0,0.10904]
[1764083442847,0.22077274,86925.0,86924.0,0.3608]
[1764083443043,0.62077274,86925.0,86924.0,0.3608]
[1764083443650,0.2239305,86918.0,86917.0,0.3608]
[1764083443857,0.6239305,86918.0,86917.0,0.3608]
[1764083445046,0.2239318,86908.0,86907.0,0.3608]
[1764083445255,0.0115141,86891.0,86886.0,0.3608]
[1764083445448,0.39,86891.0,86886.0,0.3608]
[1764083445952,0.39,86891.0,86886.0,0.3723146]
[1764083446151,0.39,86891.0,86890.0,0.1205542]
[1764083446354,0.39,86891.0,86890.0,0.2172]
[1764083447358,0.00017258,86897.0,86896.0,0.2287134]
[1764083447560,0.37017258,86897.0,86896.0,0.5895134]
[1764083448259,0.0115108,86916.0,86910.0,0.0633]
[1764083448458,0.4115108,86916.0,86910.0,0.0633]
[1764083448855,0.4115108,86916.0,86904.0,0.3608]
[1764083448856,0.4,86916.0,86904.0,0.3608]
[1764083449063,0.0115114,86911.0,86904.0,0.3723123]
[1764083449259,0.0115118,86908.0,86905.0,0.0115122]
[1764083449464,0.38,86908.0,86904.0,0.3608]
[1764083449649,0.0115126,86902.0,86901.0,0.00017258]
[1764083449956,0.4415126,86902.0,86901.0,0.00017258]
[1764083450161,0.26965836,86902.0,86901.0,0.00017258]
[1764083450551,0.25814576,86902.0,86887.0,0.3608]
[1764083450757,0.0115139,86893.0,86887.0,0.3723145]
[1764083451066,0.0115132,86898.0,86895.0,0.0633]
[1764083451250,0.4615132,86898.0,86895.0,0.0633]
[1764083451564,0.0115144,86888.0,86887.0,0.3608]
[1764083451762,0.44,86888.0,86887.0,0.5895146]
[1764083452154,0.0115135,86896.0,86895.0,0.0633]